[Event "*** Titled Tuesday Blitz"]
[Site "Chess.com"]
[Date "2018.07.03"]
[Round "4"]
[White "TST2014"]
[Black "stolencandy13"]
[Result "0-1"]
[WhiteElo "2361"]
[BlackElo "2314"]
[TimeControl "180+2"]
[EndTime "13:49:17 PDT"]
[Termination "stolencandy13 won on time"]

1. d4 {[%clk 0:03:01.9]} 1... Nf6 {[%clk 0:03:00.1]} 2. c4 {[%clk 0:03:01.5]}
2... c5 {[%clk 0:03:00.4]} 3. d5 {[%clk 0:03:01.5]} 3... e6 {[%clk 0:03:01.3]}
4. Nc3 {[%clk 0:03:02.5]} 4... exd5 {[%clk 0:03:03.2]} 5. cxd5 {[%clk
0:03:03.5]} 5... d6 {[%clk 0:03:05.1]} 6. e4 {[%clk 0:03:04.2]} 6... g6 {[%clk
0:03:06.3]} 7. Bd3 {[%clk 0:03:05]} 7... Bg7 {[%clk 0:03:06.5]} 8. h3 {[%clk
0:03:04.8]} 8... a6 {[%clk 0:03:07.4]} 9. a4 {[%clk 0:03:04.9]} 9... Nbd7 {[%clk
0:03:08.9]} 10. Nf3 {[%clk 0:03:06.4]} 10... Nh5 {[%clk 0:03:09.3]} 11. O-O
{[%clk 0:03:06.3]} 11... Ne5 {[%clk 0:03:10.2]} 12. Be2 {[%clk 0:03:05.9]} 12...
Nxf3+ {[%clk 0:03:09.2]} 13. Bxf3 {[%clk 0:03:06.6]} 13... Qh4 {[%clk
0:03:11.1]} 14. Bg4 {[%clk 0:02:55.1]} 14... Bxg4 {[%clk 0:03:11.4]} 15. Qxg4
{[%clk 0:02:55.3]} 15... Qxg4 {[%clk 0:03:12.3]} 16. hxg4 {[%clk 0:02:56.8]}
16... Nf6 {[%clk 0:03:13.9]} 17. Bf4 {[%clk 0:02:52.9]} 17... O-O-O {[%clk
0:03:06.6]} 18. g5 {[%clk 0:02:51.3]} 18... Ng4 {[%clk 0:03:01.8]} 19. f3 {[%clk
0:02:44.7]} 19... Bd4+ {[%clk 0:03:00.5]} 20. Kh1 {[%clk 0:02:44.3]} 20... h6
{[%clk 0:02:31.6]} 21. gxh6 {[%clk 0:02:37.3]} 21... Nxh6 {[%clk 0:02:28.4]} 22.
Bh2 {[%clk 0:02:34.9]} 22... Rh7 {[%clk 0:02:03.3]} 23. g3 {[%clk 0:01:51.5]}
23... Rdh8 {[%clk 0:01:39.1]} 24. Kg2 {[%clk 0:01:52.2]} 24... Ng4 {[%clk
0:01:32.3]} 25. Bg1 {[%clk 0:01:39.9]} 25... Bxg1 {[%clk 0:01:21.2]} 26. Rxg1
{[%clk 0:01:40]} 26... Rh2+ {[%clk 0:01:18.8]} 27. Kf1 {[%clk 0:01:40.8]} 27...
Ne3+ {[%clk 0:01:18.5]} 0-1

[Event "*** Titled Tuesday Blitz"]
[Site "Chess.com"]
[Date "2018.07.03"]
[Round "4"]
[White "nurmiTV"]
[Black "simplerXiao"]
[Result "1-0"]
[WhiteElo "2512"]
[BlackElo "2370"]
[TimeControl "180+2"]
[EndTime "13:49:20 PDT"]
[Termination "nurmiTV won by resignation"]

1. c4 {[%clk 0:02:50.3]} 1... c5 {[%clk 0:02:57.9]} 2. Nc3 {[%clk 0:02:51]} 2...
Nf6 {[%clk 0:02:57.2]} 3. g3 {[%clk 0:02:52.4]} 3... d5 {[%clk 0:02:57.7]} 4.
cxd5 {[%clk 0:02:53.8]} 4... Nxd5 {[%clk 0:02:58.6]} 5. Bg2 {[%clk 0:02:54.8]}
5... Nc7 {[%clk 0:02:59.6]} 6. Qa4+ {[%clk 0:02:54.3]} 6... Bd7 {[%clk
0:02:58.5]} 7. Qb3 {[%clk 0:02:55.2]} 7... Nc6 {[%clk 0:02:55.5]} 8. Qxb7 {[%clk
0:02:55.2]} 8... Nd4 {[%clk 0:02:43.8]} 9. Qe4 {[%clk 0:02:42.3]} 9... Rb8
{[%clk 0:02:36]} 10. Nh3 {[%clk 0:02:20.5]} 10... Bf5 {[%clk 0:02:15.2]} 11.
Qxf5 {[%clk 0:02:18.1]} 11... Nxf5 {[%clk 0:02:11.9]} 12. Bc6+ {[%clk
0:02:17.5]} 12... Qd7 {[%clk 0:02:13.3]} 13. Bxd7+ {[%clk 0:02:19.4]} 13... Kxd7
{[%clk 0:02:14.6]} 14. O-O {[%clk 0:02:09.5]} 14... e6 {[%clk 0:02:07.9]} 15. d3
{[%clk 0:02:00.6]} 15... h5 {[%clk 0:02:07.4]} 16. Nf4 {[%clk 0:01:57.1]} 16...
h4 {[%clk 0:02:05]} 17. g4 {[%clk 0:01:48.8]} 17... Nd4 {[%clk 0:02:01]} 18. b3
{[%clk 0:01:35.5]} 18... Bd6 {[%clk 0:01:53.2]} 19. e3 {[%clk 0:01:14.8]} 19...
Nf3+ {[%clk 0:01:11.5]} 20. Kg2 {[%clk 0:01:13.7]} 20... Ne5 {[%clk 0:01:12.4]}
21. h3 {[%clk 0:01:07.8]} 21... g5 {[%clk 0:01:11.1]} 22. Nh5 {[%clk 0:01:00.8]}
22... Nxd3 {[%clk 0:01:10.5]} 23. Rd1 {[%clk 0:00:57.6]} 23... Nxc1 {[%clk
0:01:11]} 24. Raxc1 {[%clk 0:00:56.9]} 24... Ke7 {[%clk 0:01:01.5]} 25. Ne4
{[%clk 0:00:55.9]} 25... Nd5 {[%clk 0:01:02.6]} 26. Nxd6 {[%clk 0:00:52.8]}
26... Kxd6 {[%clk 0:01:01.2]} 27. e4 {[%clk 0:00:54.2]} 27... Rb4 {[%clk
0:00:57.5]} 28. exd5 {[%clk 0:00:52.5]} 28... exd5 {[%clk 0:00:58.8]} 29. Nf6
{[%clk 0:00:52.8]} 29... d4 {[%clk 0:01:00.1]} 30. Ne4+ {[%clk 0:00:51.6]} 30...
Kd5 {[%clk 0:00:58.6]} 31. Nxg5 {[%clk 0:00:47.6]} 31... Rb7 {[%clk 0:00:58.5]}
32. Kf3 {[%clk 0:00:44.3]} 32... Rg8 {[%clk 0:00:55.7]} 33. Ne4 {[%clk 0:00:44]}
33... Rc7 {[%clk 0:00:52.8]} 34. Nf6+ {[%clk 0:00:43.8]} 1-0

[Event "*** Titled Tuesday Blitz"]
[Site "Chess.com"]
[Date "2018.07.03"]
[Round "4"]
[White "joejan"]
[Black "ChrisTool2"]
[Result "0-1"]
[WhiteElo "2254"]
[BlackElo "2269"]
[TimeControl "180+2"]
[EndTime "13:49:33 PDT"]
[Termination "ChrisTool2 won by checkmate"]

1. e4 {[%clk 0:03:01.9]} 1... c5 {[%clk 0:02:58.1]} 2. Nc3 {[%clk 0:03:02.8]}
2... d6 {[%clk 0:02:57.4]} 3. f4 {[%clk 0:03:04.4]} 3... Nc6 {[%clk 0:02:57.6]}
4. Nf3 {[%clk 0:03:05.8]} 4... g6 {[%clk 0:02:58.6]} 5. Bc4 {[%clk 0:03:06.4]}
5... Bg7 {[%clk 0:02:58.6]} 6. O-O {[%clk 0:03:07.9]} 6... e6 {[%clk 0:02:57.8]}
7. d3 {[%clk 0:03:08.9]} 7... Nge7 {[%clk 0:02:59]} 8. Qe1 {[%clk 0:03:09.2]}
8... Nd4 {[%clk 0:02:52.7]} 9. Nxd4 {[%clk 0:02:58.8]} 9... cxd4 {[%clk
0:02:50.9]} 10. Ne2 {[%clk 0:02:57.5]} 10... O-O {[%clk 0:02:48.8]} 11. Ng3
{[%clk 0:02:57.5]} 11... d5 {[%clk 0:02:43.5]} 12. Bb3 {[%clk 0:02:57.8]} 12...
dxe4 {[%clk 0:02:32.5]} 13. dxe4 {[%clk 0:02:58.7]} 13... a5 {[%clk 0:02:14.6]}
14. a4 {[%clk 0:02:57.6]} 14... d3 {[%clk 0:02:11.8]} 15. Be3 {[%clk 0:02:47.9]}
15... dxc2 {[%clk 0:01:56.9]} 16. Bxc2 {[%clk 0:02:48.4]} 16... Bxb2 {[%clk
0:01:50.8]} 17. Rb1 {[%clk 0:02:43.8]} 17... Bg7 {[%clk 0:01:51.2]} 18. f5
{[%clk 0:02:43.1]} 18... exf5 {[%clk 0:01:49.2]} 19. exf5 {[%clk 0:02:43.7]}
19... Nd5 {[%clk 0:01:39]} 20. fxg6 {[%clk 0:02:41.6]} 20... hxg6 {[%clk
0:01:35.6]} 21. Bc5 {[%clk 0:02:36.9]} 21... Re8 {[%clk 0:01:30]} 22. Qf2 {[%clk
0:02:38.1]} 22... Be6 {[%clk 0:01:26]} 23. Rxb7 {[%clk 0:02:27]} 23... Qg5
{[%clk 0:00:51.5]} 24. Bb3 {[%clk 0:02:06.7]} 24... Rab8 {[%clk 0:00:45.5]} 25.
Rxb8 {[%clk 0:02:01.7]} 25... Rxb8 {[%clk 0:00:45.7]} 26. Bc4 {[%clk 0:01:57.5]}
26... Rb2 {[%clk 0:00:42.9]} 27. Qf3 {[%clk 0:01:58.6]} 27... Nf4 {[%clk
0:00:35]} 28. Bxe6 {[%clk 0:01:56.5]} 28... Qxc5+ {[%clk 0:00:34.3]} 29. Kh1
{[%clk 0:01:50.7]} 29... g5 {[%clk 0:00:10.4]} 30. Qa8+ {[%clk 0:01:46.4]} 30...
Bf8 {[%clk 0:00:09]} 31. Bg4 {[%clk 0:01:17]} 31... Rxg2 {[%clk 0:00:07.6]} 32.
Rxf4 {[%clk 0:01:11.9]} 32... Qg1# {[%clk 0:00:06.7]} 0-1

[Event "*** Titled Tuesday Blitz"]
[Site "Chess.com"]
[Date "2018.07.03"]
[Round "4"]
[White "Nathan_Filgueiras"]
[Black "Mimsychess"]
[Result "0-1"]
[WhiteElo "2161"]
[BlackElo "2295"]
[TimeControl "180+2"]
[EndTime "13:49:39 PDT"]
[Termination "Mimsychess won by resignation"]

1. e4 {[%clk 0:03:01.9]} 1... e5 {[%clk 0:02:51.1]} 2. Nf3 {[%clk 0:03:02.5]}
2... Nc6 {[%clk 0:02:51.4]} 3. Bc4 {[%clk 0:03:03.6]} 3... Bc5 {[%clk
0:02:50.2]} 4. O-O {[%clk 0:03:04.3]} 4... Nf6 {[%clk 0:02:50.7]} 5. d3 {[%clk
0:03:04.8]} 5... O-O {[%clk 0:02:46.2]} 6. a4 {[%clk 0:03:03]} 6... a6 {[%clk
0:02:41.1]} 7. c3 {[%clk 0:03:02.6]} 7... d5 {[%clk 0:02:40.4]} 8. exd5 {[%clk
0:03:01.3]} 8... Nxd5 {[%clk 0:02:42.3]} 9. Re1 {[%clk 0:02:56.4]} 9... Nb6
{[%clk 0:02:12.6]} 10. Bb3 {[%clk 0:02:54.8]} 10... Bf5 {[%clk 0:02:10.2]} 11.
a5 {[%clk 0:02:48]} 11... Nd7 {[%clk 0:02:05.6]} 12. Bc2 {[%clk 0:02:24.6]}
12... Re8 {[%clk 0:01:55.3]} 13. Nbd2 {[%clk 0:02:22.9]} 13... h6 {[%clk
0:01:43.9]} 14. Ne4 {[%clk 0:02:11.7]} 14... Ba7 {[%clk 0:01:41.4]} 15. Ng3
{[%clk 0:02:06.6]} 15... Bh7 {[%clk 0:01:39]} 16. Be3 {[%clk 0:01:44.5]} 16...
Bxe3 {[%clk 0:01:38.2]} 17. Rxe3 {[%clk 0:01:45.5]} 17... f5 {[%clk 0:01:35.5]}
18. Re1 {[%clk 0:01:26.2]} 18... Qf6 {[%clk 0:01:36.3]} 19. Qe2 {[%clk
0:01:01.8]} 19... Rad8 {[%clk 0:01:18.2]} 20. b4 {[%clk 0:01:00.7]} 20... e4
{[%clk 0:01:13.5]} 21. dxe4 {[%clk 0:00:40.5]} 21... Qxc3 {[%clk 0:01:14.1]} 22.
Qd2 {[%clk 0:00:19.6]} 22... Qxd2 {[%clk 0:00:55.6]} 23. Nxd2 {[%clk 0:00:21.5]}
23... f4 {[%clk 0:00:55.7]} 24. Ne2 {[%clk 0:00:22.2]} 24... Nxb4 {[%clk
0:00:55.7]} 25. Bb3+ {[%clk 0:00:22.8]} 25... Kh8 {[%clk 0:00:56.7]} 26. Nxf4
{[%clk 0:00:23.9]} 26... Ne5 {[%clk 0:00:57.8]} 27. Rad1 {[%clk 0:00:24.4]}
27... Ned3 {[%clk 0:00:55.3]} 28. Nxd3 {[%clk 0:00:22.9]} 28... Nxd3 {[%clk
0:00:57.2]} 29. Re3 {[%clk 0:00:22.8]} 29... Nb2 {[%clk 0:00:57.7]} 30. Rb1
{[%clk 0:00:16.6]} 30... Rxd2 {[%clk 0:00:58.3]} 31. Kf1 {[%clk 0:00:18.1]}
31... Rxe4 {[%clk 0:00:56.9]} 32. Ke1 {[%clk 0:00:17]} 32... Rxe3+ {[%clk
0:00:55.2]} 0-1

[Event "*** Titled Tuesday Blitz"]
[Site "Chess.com"]
[Date "2018.07.03"]
[Round "4"]
[White "ENEASZ"]
[Black "rekosheten"]
[Result "1-0"]
[WhiteElo "2508"]
[BlackElo "2371"]
[TimeControl "180+2"]
[EndTime "13:49:39 PDT"]
[Termination "ENEASZ won by checkmate"]

1. e4 {[%clk 0:03:01.9]} 1... c6 {[%clk 0:03:00.6]} 2. d3 {[%clk 0:03:02.8]}
2... d5 {[%clk 0:03:02.5]} 3. Nd2 {[%clk 0:03:04.2]} 3... g6 {[%clk 0:03:00.3]}
4. Ngf3 {[%clk 0:03:04.5]} 4... Bg7 {[%clk 0:03:01.8]} 5. g3 {[%clk 0:03:05.3]}
5... a5 {[%clk 0:03:03.1]} 6. Bg2 {[%clk 0:03:05.7]} 6... a4 {[%clk 0:03:04.6]}
7. O-O {[%clk 0:03:06.6]} 7... a3 {[%clk 0:03:05]} 8. Rb1 {[%clk 0:03:07.4]}
8... axb2 {[%clk 0:03:02.9]} 9. Bxb2 {[%clk 0:03:09.3]} 9... Nf6 {[%clk
0:03:04]} 10. a3 {[%clk 0:03:05.8]} 10... O-O {[%clk 0:03:03.9]} 11. Re1 {[%clk
0:03:06.7]} 11... dxe4 {[%clk 0:02:44.6]} 12. Nxe4 {[%clk 0:03:08.6]} 12... Nxe4
{[%clk 0:02:40.5]} 13. Rxe4 {[%clk 0:03:04.7]} 13... Bxb2 {[%clk 0:02:37.6]} 14.
Rxb2 {[%clk 0:03:06.6]} 14... Rxa3 {[%clk 0:02:39.3]} 15. h4 {[%clk 0:03:05.1]}
15... Nd7 {[%clk 0:02:33.4]} 16. Qc1 {[%clk 0:02:59.1]} 16... Nf6 {[%clk
0:02:25.9]} 17. Re1 {[%clk 0:02:59.9]} 17... Qa5 {[%clk 0:02:21.7]} 18. Rb1
{[%clk 0:02:57]} 18... Re8 {[%clk 0:02:13.9]} 19. Qh6 {[%clk 0:02:50.5]} 19...
Qh5 {[%clk 0:02:09]} 20. Qf4 {[%clk 0:02:48]} 20... Nd5 {[%clk 0:01:49.2]} 21.
Qd2 {[%clk 0:02:42.6]} 21... Ra2 {[%clk 0:01:29.2]} 22. Ng5 {[%clk 0:02:38.1]}
22... Qh6 {[%clk 0:01:19.9]} 23. Bxd5 {[%clk 0:02:01]} 23... cxd5 {[%clk
0:01:20.4]} 24. Qf4 {[%clk 0:02:02.5]} 24... f6 {[%clk 0:00:51.6]} 25. Qf3
{[%clk 0:02:02.8]} 25... Ra5 {[%clk 0:00:36.7]} 26. Ne6 {[%clk 0:01:33]} 26...
Kf7 {[%clk 0:00:28.2]} 27. Ng5+ {[%clk 0:01:32]} 27... Kg7 {[%clk 0:00:23.5]}
28. Ne6+ {[%clk 0:01:33.7]} 28... Kf7 {[%clk 0:00:20.6]} 29. Nc7 {[%clk
0:01:32.3]} 29... Rd8 {[%clk 0:00:20.3]} 30. c4 {[%clk 0:01:23.8]} 30... dxc4
{[%clk 0:00:20]} 31. dxc4 {[%clk 0:01:25.3]} 31... Qd2 {[%clk 0:00:17.5]} 32.
Nd5 {[%clk 0:01:24.8]} 32... Be6 {[%clk 0:00:16.3]} 33. Rxe6 {[%clk 0:01:11.8]}
33... Kxe6 {[%clk 0:00:18.2]} 34. Qe4+ {[%clk 0:01:12.5]} 34... Kd6 {[%clk
0:00:15.2]} 35. Qxe7+ {[%clk 0:01:14.1]} 35... Kc6 {[%clk 0:00:17.1]} 36. Qc7#
{[%clk 0:01:15]} 1-0

[Event "*** Titled Tuesday Blitz"]
[Site "Chess.com"]
[Date "2018.07.03"]
[Round "4"]
[White "Passacaglia23"]
[Black "nitpicker"]
[Result "1-0"]
[WhiteElo "2303"]
[BlackElo "2102"]
[TimeControl "180+2"]
[EndTime "13:49:43 PDT"]
[Termination "Passacaglia23 won by resignation"]

1. d4 {[%clk 0:03:01.9]} 1... Nf6 {[%clk 0:03:00.4]} 2. c4 {[%clk 0:03:02.6]}
2... e6 {[%clk 0:03:00.1]} 3. Nf3 {[%clk 0:03:03.2]} 3... b6 {[%clk 0:02:57.8]}
4. g3 {[%clk 0:03:04.4]} 4... Ba6 {[%clk 0:02:57.7]} 5. Qc2 {[%clk 0:03:05.2]}
5... Bb4+ {[%clk 0:02:45.3]} 6. Bd2 {[%clk 0:03:04.1]} 6... Be7 {[%clk
0:02:37.4]} 7. Bg2 {[%clk 0:03:01.5]} 7... Bb7 {[%clk 0:02:32]} 8. Nc3 {[%clk
0:02:55.3]} 8... c5 {[%clk 0:02:32.8]} 9. d5 {[%clk 0:02:54]} 9... exd5 {[%clk
0:02:24.1]} 10. Nh4 {[%clk 0:02:49.1]} 10... O-O {[%clk 0:02:14.7]} 11. Nf5
{[%clk 0:02:43.6]} 11... Na6 {[%clk 0:02:07.8]} 12. cxd5 {[%clk 0:02:32.2]}
12... Nb4 {[%clk 0:02:03.8]} 13. Qb3 {[%clk 0:02:30.8]} 13... c4 {[%clk
0:01:58.1]} 14. Qxc4 {[%clk 0:01:31.9]} 14... Nc2+ {[%clk 0:01:48.5]} 15. Kd1
{[%clk 0:01:33]} 15... Nxa1 {[%clk 0:01:49.2]} 16. d6 {[%clk 0:01:08.9]} 16...
Bxd6 {[%clk 0:01:39.5]} 17. Bxb7 {[%clk 0:01:08.7]} 17... Rb8 {[%clk 0:01:05.6]}
18. Nxd6 {[%clk 0:01:08]} 18... Qe7 {[%clk 0:01:06.9]} 19. Qd3 {[%clk
0:01:00.3]} 19... Ne8 {[%clk 0:00:52.5]} 20. Ncb5 {[%clk 0:00:50]} 20... Qf6
{[%clk 0:00:45.3]} 21. Kc1 {[%clk 0:00:38.5]} 21... Qxf2 {[%clk 0:00:42.9]} 22.
Kb1 {[%clk 0:00:38.5]} 22... Rxb7 {[%clk 0:00:38.5]} 23. Nxb7 {[%clk 0:00:35.8]}
23... Qg2 {[%clk 0:00:39.6]} 24. Qf3 {[%clk 0:00:35.3]} 24... Qh3 {[%clk
0:00:25.9]} 25. Bb4 {[%clk 0:00:28.6]} 25... d6 {[%clk 0:00:22.3]} 26. Kxa1
{[%clk 0:00:27.3]} 1-0

[Event "*** Titled Tuesday Blitz"]
[Site "Chess.com"]
[Date "2018.07.03"]
[Round "4"]
[White "gmjlh"]
[Black "Gvalch"]
[Result "0-1"]
[WhiteElo "2656"]
[BlackElo "2626"]
[TimeControl "180+2"]
[EndTime "13:49:53 PDT"]
[Termination "Gvalch won on time"]

1. d4 {[%clk 0:03:01.9]} 1... d5 {[%clk 0:03:00.6]} 2. c4 {[%clk 0:03:02.2]}
2... c6 {[%clk 0:03:02]} 3. Nf3 {[%clk 0:03:02.2]} 3... Nf6 {[%clk 0:03:02.5]}
4. Nc3 {[%clk 0:03:00.4]} 4... a6 {[%clk 0:03:03.2]} 5. c5 {[%clk 0:02:55.7]}
5... Bf5 {[%clk 0:03:03.5]} 6. Bf4 {[%clk 0:02:51.4]} 6... Nbd7 {[%clk
0:03:04.1]} 7. e3 {[%clk 0:02:51.5]} 7... Nh5 {[%clk 0:02:59.9]} 8. Nh4 {[%clk
0:02:32.9]} 8... Bg6 {[%clk 0:02:43.7]} 9. g4 {[%clk 0:02:07.6]} 9... Nxf4
{[%clk 0:02:36.2]} 10. exf4 {[%clk 0:02:09.5]} 10... e6 {[%clk 0:02:36.9]} 11.
g5 {[%clk 0:01:56.6]} 11... b6 {[%clk 0:02:26.6]} 12. b4 {[%clk 0:01:53]} 12...
bxc5 {[%clk 0:01:44.6]} 13. dxc5 {[%clk 0:01:34.7]} 13... Qb8 {[%clk 0:01:40.5]}
14. Qd4 {[%clk 0:01:12.5]} 14... a5 {[%clk 0:01:39.1]} 15. b5 {[%clk 0:01:03.8]}
15... Bxc5 {[%clk 0:01:35.2]} 16. Qxg7 {[%clk 0:01:03.7]} 16... Ke7 {[%clk
0:00:57.5]} 17. f5 {[%clk 0:00:43.2]} 17... Qf4 {[%clk 0:00:49.7]} 18. Nxg6+
{[%clk 0:00:20.5]} 18... hxg6 {[%clk 0:00:50.5]} 19. f6+ {[%clk 0:00:21.4]}
19... Kd6 {[%clk 0:00:51.1]} 20. Qxf7 {[%clk 0:00:22.7]} 20... Qxf2+ {[%clk
0:00:34]} 21. Kd1 {[%clk 0:00:23.7]} 21... Qf3+ {[%clk 0:00:35.5]} 22. Kc2
{[%clk 0:00:22.5]} 22... Qxh1 {[%clk 0:00:35.1]} 23. bxc6 {[%clk 0:00:18.3]}
23... Rxh2+ {[%clk 0:00:35]} 24. Kb3 {[%clk 0:00:06.2]} 24... Rb8+ {[%clk
0:00:35.3]} 25. Nb5+ {[%clk 0:00:03.8]} 25... Rxb5+ {[%clk 0:00:35.9]} 26. Bxb5
{[%clk 0:00:05.4]} 26... Qf3+ {[%clk 0:00:36.7]} 0-1

[Event "*** Titled Tuesday Blitz"]
[Site "Chess.com"]
[Date "2018.07.03"]
[Round "4"]
[White "MikaelyanArman"]
[Black "VovenRogel"]
[Result "1-0"]
[WhiteElo "2614"]
[BlackElo "2684"]
[TimeControl "180+2"]
[EndTime "13:49:57 PDT"]
[Termination "MikaelyanArman won by resignation"]

1. d4 {[%clk 0:03:01.9]} 1... Nf6 {[%clk 0:03:00.3]} 2. Bf4 {[%clk 0:03:02.8]}
2... d5 {[%clk 0:03:00.6]} 3. e3 {[%clk 0:03:03.5]} 3... c5 {[%clk 0:03:01]} 4.
Nf3 {[%clk 0:03:01.9]} 4... Nc6 {[%clk 0:03:00.8]} 5. Nbd2 {[%clk 0:03:02.6]}
5... e6 {[%clk 0:02:59.8]} 6. c3 {[%clk 0:03:02]} 6... Nh5 {[%clk 0:03:01.2]} 7.
Bg5 {[%clk 0:02:59.8]} 7... f6 {[%clk 0:03:01.9]} 8. Bh4 {[%clk 0:02:49.9]} 8...
g6 {[%clk 0:03:03]} 9. Bb5 {[%clk 0:02:44.7]} 9... Bd7 {[%clk 0:03:01.6]} 10.
O-O {[%clk 0:02:34.9]} 10... Be7 {[%clk 0:03:02.2]} 11. dxc5 {[%clk 0:02:33]}
11... Bxc5 {[%clk 0:02:59.7]} 12. e4 {[%clk 0:02:32.4]} 12... a6 {[%clk
0:02:51.2]} 13. Ba4 {[%clk 0:02:16.6]} 13... dxe4 {[%clk 0:02:34.6]} 14. Nxe4
{[%clk 0:02:18.5]} 14... Be7 {[%clk 0:02:36]} 15. Nd6+ {[%clk 0:02:15.9]} 15...
Bxd6 {[%clk 0:02:35.9]} 16. Qxd6 {[%clk 0:02:17.8]} 16... Qe7 {[%clk 0:02:32.7]}
17. Qc7 {[%clk 0:02:13.2]} 17... b5 {[%clk 0:02:31.8]} 18. Bb3 {[%clk
0:02:07.6]} 18... O-O {[%clk 0:02:26.3]} 19. Rad1 {[%clk 0:02:07.8]} 19... Ra7
{[%clk 0:02:12.1]} 20. Qd6 {[%clk 0:01:52.4]} 20... Qxd6 {[%clk 0:02:07.7]} 21.
Rxd6 {[%clk 0:01:54.3]} 21... Ng7 {[%clk 0:02:09.6]} 22. Rfd1 {[%clk 0:01:53.3]}
22... Nb8 {[%clk 0:01:55.3]} 23. Nd4 {[%clk 0:01:43.7]} 23... g5 {[%clk
0:01:46.9]} 24. Bg3 {[%clk 0:01:42]} 24... Re8 {[%clk 0:01:42]} 25. Rb6 {[%clk
0:01:38.8]} 25... Ra8 {[%clk 0:01:42.7]} 26. Re1 {[%clk 0:01:30.6]} 26... h5
{[%clk 0:01:20.7]} 27. h4 {[%clk 0:01:28.5]} 27... gxh4 {[%clk 0:01:18.7]} 28.
Bxh4 {[%clk 0:01:29.9]} 28... Kf7 {[%clk 0:01:20.1]} 29. Rb7 {[%clk 0:01:28.5]}
29... Kg6 {[%clk 0:01:18.5]} 30. Re3 {[%clk 0:01:22.5]} 30... e5 {[%clk
0:01:14.9]} 31. Rg3+ {[%clk 0:00:55.7]} 31... Kh6 {[%clk 0:01:14.7]} 32. Bxf6
{[%clk 0:00:55.6]} 32... exd4 {[%clk 0:00:58.7]} 33. Bxg7+ {[%clk 0:00:54.4]}
33... Kh7 {[%clk 0:01:00]} 34. Bc2+ {[%clk 0:00:54.4]} 34... Kg8 {[%clk
0:01:00.1]} 35. Bxd4+ {[%clk 0:00:51.6]} 35... Bg4 {[%clk 0:01:00.1]} 36. f3
{[%clk 0:00:46.7]} 1-0

[Event "*** Titled Tuesday Blitz"]
[Site "Chess.com"]
[Date "2018.07.03"]
[Round "4"]
[White "artichaud"]
[Black "nickmatta"]
[Result "0-1"]
[WhiteElo "2131"]
[BlackElo "2276"]
[TimeControl "180+2"]
[EndTime "13:50:01 PDT"]
[Termination "nickmatta won on time"]

1. d4 {[%clk 0:03:01.9]} 1... Nf6 {[%clk 0:01:18]} 2. Bg5 {[%clk 0:01:20.1]}
2... Ne4 {[%clk 0:01:15.7]} 3. Bf4 {[%clk 0:01:19.5]} 3... d5 {[%clk 0:01:15]}
4. e3 {[%clk 0:01:19.8]} 4... Bf5 {[%clk 0:01:12]} 5. Bd3 {[%clk 0:01:14.9]}
5... e6 {[%clk 0:01:06.8]} 6. Ne2 {[%clk 0:01:15.5]} 6... Bd6 {[%clk 0:01:02.9]}
7. O-O {[%clk 0:01:14.5]} 7... O-O {[%clk 0:01:03.4]} 8. c4 {[%clk 0:01:13.6]}
8... c6 {[%clk 0:01:03.7]} 9. Bxe4 {[%clk 0:01:02.8]} 9... Bxe4 {[%clk
0:01:04.3]} 10. Nbc3 {[%clk 0:01:03.4]} 10... Bf5 {[%clk 0:00:59.2]} 11. Bxd6
{[%clk 0:01:00.4]} 11... Qxd6 {[%clk 0:00:59.8]} 12. c5 {[%clk 0:01:00.9]} 12...
Qe7 {[%clk 0:00:56.6]} 13. b4 {[%clk 0:01:02.7]} 13... e5 {[%clk 0:00:55.1]} 14.
b5 {[%clk 0:01:02.4]} 14... Nd7 {[%clk 0:00:40.1]} 15. bxc6 {[%clk 0:00:50.6]}
15... bxc6 {[%clk 0:00:41.9]} 16. Qa4 {[%clk 0:00:51.2]} 16... Qf6 {[%clk
0:00:34.3]} 17. Rfe1 {[%clk 0:00:20.2]} 17... h6 {[%clk 0:00:32.9]} 18. Qa5
{[%clk 0:00:12.9]} 18... Rfb8 {[%clk 0:00:24.8]} 19. Ng3 {[%clk 0:00:04.7]}
19... Bg6 {[%clk 0:00:24]} 20. Nce2 {[%clk 0:00:05.3]} 20... Rb2 {[%clk
0:00:18.8]} 21. Qc3 {[%clk 0:00:04]} 21... Rab8 {[%clk 0:00:18.4]} 22. h3 {[%clk
0:00:02.7]} 22... exd4 {[%clk 0:00:16]} 23. exd4 {[%clk 0:00:02.3]} 23... Rc2
{[%clk 0:00:12.5]} 0-1